lending/lending_fUSD_20240305
["ID","MTS","AMOUNT","RATE_DAILY","PERIOD"]
[316708850,1709596871738,153.5567108,0.00020459,2]
[316708851,1709596908981,236.85,0.00018487,2]
[316708852,1709596941797,155.80818056,0.00020079,2]
[316708854,1709597020697,20000.0,0.00026,30]
[316708855,1709597020777,250.0,0.00020415,2]
[316708856,1709597061277,800.0,0.0002042,2]
[316708857,1709597126204,4794.56958671,0.00027,30]
[316708858,1709597167316,858.39,0.0002033,2]
[316708859,1709597176803,250.0,0.0002033,2]
[316708862,1709597208525,25736.64847894,0.0002033,2]
[316708864,1709597228946,14298.13804386,0.0002033,2]
[316708865,1709597230531,14298.13804386,0.0002033,2]
[316708867,1709597237237,160.10147711,0.00020196,2]
[316708868,1709597237709,160.10147711,0.00020289,2]
[316708869,1709597250496,153.40191992,0.00020352,2]
[316708870,1709597251573,156.5541747,0.00020311,2]
[316708872,1709597274527,7449.32992085,0.0002033,2]
[316708873,1709597290535,7449.32992085,0.0002033,2]
[316708876,1709597310538,7449.32992085,0.0002033,2]
[316708893,1709597332541,7449.32992085,0.0002033,2]
[316708901,1709597352539,7449.32992085,0.0002033,2]
[316708907,1709597370539,7449.32992085,0.0002033,2]
[316708911,1709597390553,7449.32992085,0.0002033,2]
[316708918,1709597406548,7449.32992085,0.0002033,2]
[316708921,1709597428555,7449.32992085,0.0002033,2]
[316708929,1709597432270,-155.0,0.00020519,2]
[316708930,1709597432281,-154.28118103,0.0002052,2]
[316708931,1709597432519,-698.50946336,0.0002052,2]
[316708932,1709597432529,-105.82078951,0.00020582,2]
[316708938,1709597433014,-355.31921049,0.00020582,2]
[316708939,1709597433025,-160.10147711,0.0002062,2]
[316708940,1709597433034,-461.14,0.0002069,2]
[316708941,1709597433047,-461.14,0.00020799,2]
[316708942,1709597433057,-230.91960324,0.00020803,2]
[316708943,1709597433067,-268.14,0.00020803,2]
[316708944,1709597433078,-160.10147711,0.00020857,2]
[316708945,1709597433088,-461.14,0.00020907,2]
[316708946,1709597433098,-29999.99,0.00020907,2]
[316708947,1709597433107,-202.0,0.00020919,2]
[316708948,1709597433117,-1250.0,0.00021,3]
[316708949,1709597433126,-461.14,0.00021015,2]
[316708950,1709597433136,-757.8,0.00021096,2]
[316708951,1709597433145,-1016.62,0.00021096,2]
[316708952,1709597433154,-172.9,0.00021096,2]
[316708953,1709597433165,-461.14,0.00021124,2]
[316708954,1709597433176,-200.0,0.00021189,2]
[316708955,1709597433186,-157.32159862,0.00021216,2]
[316708956,1709597433196,-461.14,0.00021232,2]
[316708957,1709597433205,-155.80818056,0.00021308,2]
[316708958,1709597433215,-155.80818056,0.0002133,2]
[316708959,1709597433226,-461.14,0.0002134,2]
[316708960,1709597433236,-160.10147711,0.00021361,2]
[316708961,1709597433245,-461.14,0.00021449,2]
[316708962,1709597433255,-57559.66052465,0.00021458,2]
[316708963,1709597433277,-3056.59561292,0.00021458,2]
[316708964,1709597433291,-1463.65804085,0.00021458,2]
[316708965,1709597433302,-371.63853164,0.00021458,2]
[316708966,1709597433315,-565.83995623,0.00021458,2]
[316708967,1709597433326,-4555.41286816,0.00021458,2]
[316708968,1709597433338,-369.55334897,0.00021458,2]
[316708969,1709597433348,-6486.17455759,0.00021459,2]
[316708970,1709597433368,-1857.80356833,0.00021459,2]
[316708971,1709597433380,-25730.290805,0.00021459,2]
[316708972,1709597433444,-2512.08209978,0.00021459,2]
[316708973,1709597433493,-13413.6489693,0.00021459,2]
[316708974,1709597433502,-24673.10873036,0.00021461,2]
[316708975,1709597433511,-14207.10813932,0.00021464,2]
[316708976,1709597433524,-461.14,0.00021557,2]
[316708977,1709597433534,-3002.0368832,0.00021578,2]
[316708978,1709597433545,-1000.0,0.00021606,2]
[316708979,1709597433554,-1546.76248345,0.00021606,2]
[316708980,1709597433563,-187.41841026,0.00021606,2]
[316708981,1709597433572,-662.25884746,0.00021606,2]
[316708982,1709597433585,-306.99247181,0.00021606,2]
[316708983,1709597433594,-5.26710656,0.00021665,2]
[316708984,1709597438276,-202.0,0.00020919,2]
[316708985,1709597438286,-455.87289344,0.00021665,2]
[316708986,1709597438302,-461.14,0.00021774,2]
[316708987,1709597438311,-154.28698689,0.0002188,2]
[316708989,1709597438320,-271.53644967,0.00021882,2]
[316708990,1709597438665,-189.60355033,0.00021882,2]
[316708991,1709597438675,-3339.73100463,0.000219,2]
[316708992,1709597438687,-2498.28700846,0.000219,2]
[316708993,1709597438731,-7244.4,0.000219,2]
[316708995,1709597438742,-6612.80660008,0.000219,2]
[316709006,1709597440912,-171.05318572,0.00020703,2]
[316709007,1709597440922,-1159.58590163,0.000219,2]
[316709008,1709597440934,-708.74999259,0.000219,2]
[316709009,1709597440947,-538.32677185,0.000219,2]
[316709010,1709597440959,-998.74268875,0.000219,2]
[316709011,1709597440989,225.0,0.00019478,2]
[316709012,1709597441694,-225.0,0.00021742,2]
[316709013,1709597441705,-67939.488,0.000219,2]
[316709052,1709597443432,-470.55645636,0.000219,2]
[316709054,1709597443444,-2000.0,0.000219,2]
[316709056,1709597443454,-160.10147711,0.00021916,2]
[316709058,1709597443464,-150.0,0.00021918,2]
[316709060,1709597443473,-250.0,0.00021918,2]
[316709062,1709597443484,-152.24575414,0.00021981,2]
[316709064,1709597443496,-461.14,0.0002199,2]
[316709066,1709597443505,-163.6714242,0.00021998,2]
[316709068,1709597443516,-163.6714242,0.00021998,2]
[316709070,1709597443526,-163.6714242,0.00021998,2]
[316709072,1709597443536,-2063.3,0.00022,10]
[316709074,1709597443547,-160.10147711,0.00022065,2]
[316709076,1709597443558,-162.94752439,0.00022089,2]
[316709078,1709597443569,-461.14,0.00022099,2]
[316709080,1709597443579,-461.14,0.00022207,2]
[316709082,1709597443588,-461.14,0.00022315,2]
[316709084,1709597443598,-969.02162125,0.00022363,2]
[316709086,1709597443607,-414.8,0.00022421,2]
[316709088,1709597443616,-461.14,0.00022424,2]
[316709090,1709597443625,-152.24575414,0.00022426,2]
[316709092,1709597443634,-337.60020705,0.000225,3]
[316709096,1709597443663,-608.16111325,0.000225,3]
[316709098,1709597443673,-5107.55476867,0.000225,2]
[316709100,1709597443683,-975.0090903,0.000225,2]
[316709103,1709597443698,-1772.6000002,0.000225,2]
[316709105,1709597443715,-17252.3909095,0.000225,2]
[316709108,1709597443725,-861.5174078,0.00022503,2]
[316709109,1709597443734,-150.0,0.00022504,2]
[316709112,1709597443744,-150.0,0.00022504,2]
[316709114,1709597443753,-150.0,0.00022504,2]
[316709116,1709597443763,-150.0,0.00022504,2]
[316709118,1709597443772,-156.95,0.00022504,2]
[316709120,1709597443782,-461.14,0.00022532,2]
[316709122,1709597443792,-140380.79325676,0.000226,5]
[316709125,1709597443848,-1842.67992397,0.000226,5]
[316709127,1709597443857,-180.0,0.00022603,2]
[316709129,1709597443867,-152.24575414,0.00022618,2]
[316709131,1709597443876,-461.14,0.0002264,2]
[316709133,1709597443889,-4597.70899363,0.00022643,2]
[316709138,1709597443923,-5070.12864601,0.00022643,2]
[316709140,1709597443935,-1078.16236036,0.00022643,2]
[316709142,1709597443944,-1042.0,0.00022643,2]
[316709144,1709597443953,-5750.0,0.00022643,2]
[316709146,1709597443963,-155.80818056,0.00022657,2]
[316709148,1709597443972,-275.48400046,0.00022678,2]
[316709150,1709597443982,-413.01409,0.0002268,2]
[316709152,1709597443992,-9908.77619331,0.00022683,2]
[316709172,1709597446559,7449.32992085,0.0002033,2]
[316709173,1709597446576,-310.1455,0.00022683,2]
[316709174,1709597446714,-1940.25198017,0.00022683,2]
[316709175,1709597446724,-407.43,0.00022686,2]
[316709176,1709597446734,-901.70529999,0.0002269,2]
[316709177,1709597446744,-1000.0,0.00022694,2]
[316709178,1709597446754,-3251.04206832,0.00022694,2]
[316709179,1709597446764,-150.0,0.000227,2]
[316709180,1709597446775,-969.02162125,0.00022714,2]
[316709181,1709597446784,-300.0,0.00022734,2]
[316709182,1709597446795,-300.0,0.0002275,2]
[316709183,1709597446804,-150.0,0.00022761,2]
[316709184,1709597446814,-3000.0,0.0002277,2]
[316709185,1709597446824,-150.0,0.00022777,2]
[316709186,1709597446833,-150.0,0.00022784,2]
[316709187,1709597446843,-155.0,0.00022792,2]
[316709188,1709597446853,-238.02698451,0.00022793,2]
[316709190,1709597446870,-378.18627949,0.00022793,2]
[316709192,1709597446880,-302.61817051,0.00022793,2]
[316709194,1709597446892,-12141.22358008,0.00022793,2]
[316709196,1709597446902,-577.90860023,0.00022794,2]
[316709198,1709597446911,-500.0,0.00022794,2]
[316709200,1709597446921,-568.34506358,0.00022794,2]
[316709201,1709597446930,-500.9639591,0.00022794,2]
[316709202,1709597446939,-500.0,0.00022794,2]
[316709203,1709597446949,-500.0,0.00022794,2]
[316709204,1709597446959,-504.88882622,0.00022794,2]
[316709205,1709597446969,-390.30719824,0.00022794,2]
[316709207,1709597446978,-577.70412505,0.00022794,2]
[316709209,1709597446987,-509.19172797,0.00022794,2]
[316709211,1709597446997,-500.0,0.00022794,2]
[316709213,1709597447006,-500.0,0.00022794,2]
[316709215,1709597447015,-523.15027549,0.00022794,2]
[316709217,1709597447024,-500.0,0.00022794,2]
[316709219,1709597447034,-206.41138839,0.00022794,2]
[316709221,1709597447044,-500.0,0.00022794,2]
[316709224,1709597447055,-500.0,0.00022794,2]
[316709226,1709597447064,-500.0,0.00022794,2]
[316709228,1709597447074,-500.0,0.00022794,2]
[316709230,1709597447084,-500.0,0.00022794,2]
[316709232,1709597447093,-500.0,0.00022794,2]
[316709234,1709597447102,-199.61297718,0.00022794,2]
[316709236,1709597447111,-532.56015853,0.00022794,2]
[316709238,1709597447121,-505.81058693,0.00022794,2]
[316709240,1709597447130,-500.0,0.00022794,2]
[316709242,1709597447139,-500.0,0.00022794,2]
[316709244,1709597447149,-500.0,0.00022794,2]
[316709246,1709597447158,-500.0,0.00022794,2]
[316709248,1709597447168,-500.0,0.00022794,2]
[316709250,1709597447177,-504.34768259,0.00022794,2]
[316709252,1709597447187,-504.33897023,0.00022794,2]
[316709254,1709597447197,-500.0,0.00022794,2]
[316709256,1709597447207,-311.08375199,0.00022794,2]
[316709258,1709597447217,-500.0,0.00022794,2]
[316709260,1709597447226,-500.0,0.00022794,2]
[316709262,1709597447235,-500.0,0.00022794,2]
[316709264,1709597447245,-500.0,0.00022794,2]
[316709266,1709597447255,-500.0,0.00022794,2]
[316709268,1709597447264,-500.0,0.00022794,2]
[316709270,1709597447274,-500.0,0.00022794,2]
[316709272,1709597447283,-500.0,0.00022794,2]
[316709273,1709597447293,-500.0,0.00022794,2]
[316709274,1709597447303,-500.0,0.00022794,2]
[316709275,1709597447313,-500.0,0.00022794,2]
[316709276,1709597447324,-500.0,0.00022794,2]
[316709277,1709597447334,-500.0,0.00022794,2]
[316709278,1709597447345,-500.0,0.00022794,2]
[316709279,1709597447354,-500.0,0.00022794,2]
[316709280,1709597447365,-500.0,0.00022794,2]
[316709281,1709597447375,-500.0,0.00022794,2]
[316709282,1709597447385,-500.0,0.00022794,2]
[316709283,1709597447394,-623.21676612,0.00022794,2]
[316709284,1709597447404,-500.0,0.00022794,2]
[316709285,1709597447413,-500.0,0.00022794,2]
[316709286,1709597447423,-500.0,0.00022794,2]
[316709287,1709597447432,-500.0,0.00022794,2]
[316709288,1709597447445,-646.65641728,0.00022794,2]
[316709289,1709597447456,-500.0,0.00022794,2]
[316709290,1709597447466,-500.0,0.00022794,2]
[316709291,1709597447475,-500.0,0.00022794,2]
[316709292,1709597447488,-500.0,0.00022794,2]
[316709293,1709597447498,-500.0,0.00022794,2]
[316709294,1709597447507,-500.0,0.00022794,2]
[316709295,1709597447517,-500.0,0.00022794,2]
[316709296,1709597447527,-500.0,0.00022794,2]
[316709297,1709597447537,-500.0,0.00022794,2]
[316709298,1709597447548,-500.0,0.00022794,2]
[316709299,1709597447558,-500.0,0.00022794,2]
[316709300,1709597447568,-426.52055914,0.00022794,2]
[316709301,1709597447577,-500.0,0.00022794,2]
[316709302,1709597447587,-500.0,0.00022794,2]
[316709303,1709597447597,-500.0,0.00022794,2]
[316709304,1709597447607,-500.0,0.00022794,2]
[316709305,1709597447616,-500.0,0.00022794,2]
[316709306,1709597447628,-500.0,0.00022794,2]
[316709307,1709597447637,-500.0,0.00022794,2]
[316709308,1709597447647,-500.0,0.00022794,2]
[316709309,1709597447659,-457.08633701,0.00022794,2]
[316709310,1709597447669,-500.0,0.00022794,2]
[316709311,1709597447679,-532.8365125,0.00022794,2]
[316709312,1709597447689,-500.0,0.00022794,2]
[316709313,1709597447699,-500.0,0.00022794,2]
[316709314,1709597447709,-503.55350832,0.00022794,2]
[316709315,1709597447719,-356.71185803,0.00022794,2]
[316709316,1709597447729,-500.0,0.00022794,2]
[316709317,1709597447739,-179.11277667,0.00022794,2]
[316709318,1709597447749,-534.27402794,0.00022794,2]
[316709319,1709597447759,-500.0,0.00022794,2]
[316709320,1709597447768,-500.0,0.00022794,2]
[316709321,1709597447777,-500.0,0.00022794,2]
[316709322,1709597447787,-500.0,0.00022794,2]
[316709323,1709597447797,-629.21598464,0.00022794,2]
[316709324,1709597447806,-500.0,0.00022794,2]
[316709325,1709597447819,-500.0,0.00022794,2]
[316709326,1709597447828,-500.0,0.00022794,2]
[316709327,1709597447839,-565.80342058,0.00022794,2]
[316709328,1709597447849,-500.0,0.00022794,2]
[316709329,1709597447858,-619.92562679,0.00022794,2]
[316709330,1709597447868,-500.0,0.00022794,2]
[316709331,1709597447878,-500.0,0.00022794,2]
[316709332,1709597447887,-500.0,0.00022794,2]
[316709333,1709597447896,-500.0,0.00022794,2]
[316709334,1709597447905,-500.0,0.00022794,2]
[316709335,1709597447915,-500.0,0.00022794,2]
[316709336,1709597447924,-510.63864128,0.00022794,2]
[316709337,1709597447932,-500.0,0.00022794,2]
[316709338,1709597447942,-500.0,0.00022794,2]
[316709339,1709597447951,-500.0,0.00022794,2]
[316709340,1709597447960,-500.0,0.00022794,2]
[316709341,1709597447970,-150.63808223,0.00022794,2]
[316709342,1709597447980,-500.0,0.00022794,2]
[316709343,1709597447990,-212.096806,0.00022794,2]
[316709344,1709597448000,-500.0,0.00022794,2]
[316709345,1709597448009,-500.0,0.00022794,2]
[316709346,1709597448020,-500.0,0.00022794,2]
[316709347,1709597448029,-228.34540638,0.00022794,2]
[316709348,1709597448039,-500.0,0.00022794,2]
[316709349,1709597448052,-214.55006105,0.00022794,2]
[316709350,1709597448062,-500.0,0.00022794,2]
[316709351,1709597448071,-500.0,0.00022794,2]
[316709352,1709597448081,-500.0,0.00022794,2]
[316709353,1709597448090,-500.0,0.00022794,2]
[316709354,1709597448100,-500.0,0.00022794,2]
[316709355,1709597448109,-500.0,0.00022794,2]
[316709356,1709597448119,-313.6367501,0.00022794,2]
[316709357,1709597448129,-500.0,0.00022794,2]
[316709358,1709597448139,-500.0,0.00022794,2]
[316709359,1709597448149,-500.0,0.00022794,2]
[316709360,1709597448159,-500.0,0.00022794,2]
[316709361,1709597448168,-500.0,0.00022794,2]
[316709362,1709597448178,-500.0,0.00022794,2]
[316709363,1709597448188,-500.0,0.00022794,2]
[316709364,1709597448198,-500.0,0.00022794,2]
[316709365,1709597448208,-500.0,0.00022794,2]
[316709366,1709597448218,-500.0,0.00022794,2]
[316709367,1709597448228,-500.0,0.00022794,2]
[316709368,1709597448237,-500.0,0.00022794,2]
[316709369,1709597448247,-168.5684019,0.00022794,2]
[316709370,1709597448257,-500.0,0.00022794,2]
[316709371,1709597448266,-420.80051537,0.00022794,2]
[316709372,1709597448275,-500.0,0.00022794,2]
[316709373,1709597448285,-500.0,0.00022794,2]
[316709374,1709597448295,-500.0,0.00022794,2]
[316709375,1709597448305,-500.0,0.00022794,2]
[316709376,1709597448314,-500.0,0.00022794,2]
[316709377,1709597448323,-500.0,0.00022794,2]
[316709378,1709597448333,-500.0,0.00022794,2]
[316709379,1709597448342,-500.0,0.00022794,2]
[316709380,1709597448355,-500.0,0.00022794,2]
[316709381,1709597448365,-500.0,0.00022794,2]
[316709382,1709597448374,-500.0,0.00022794,2]
[316709383,1709597448383,-500.0,0.00022794,2]
[316709384,1709597448393,-500.0,0.00022794,2]
[316709385,1709597448402,-500.0,0.00022794,2]
[316709386,1709597448411,-500.0,0.00022794,2]
[316709387,1709597448420,-500.0,0.00022794,2]
[316709388,1709597448429,-500.0,0.00022794,2]
[316709389,1709597448438,-500.0,0.00022794,2]
[316709390,1709597448452,-500.0,0.00022794,2]
[316709391,1709597448461,-500.0,0.00022794,2]
[316709392,1709597448470,-500.0,0.00022794,2]
[316709393,1709597448480,-500.0,0.00022794,2]
[316709394,1709597448491,-500.0,0.00022794,2]
[316709395,1709597448500,-500.0,0.00022794,2]
[316709396,1709597448510,-500.0,0.00022794,2]
[316709397,1709597448520,-500.0,0.00022794,2]
[316709398,1709597448530,-500.0,0.00022794,2]
[316709399,1709597448540,-500.0,0.00022794,2]
[316709400,1709597448552,-500.0,0.00022794,2]
[316709401,1709597448561,-500.0,0.00022794,2]
[316709402,1709597448571,-500.0,0.00022794,2]
[316709403,1709597448581,-500.0,0.00022794,2]
[316709404,1709597448590,-500.0,0.00022794,2]
[316709405,1709597448600,-500.0,0.00022794,2]
[316709406,1709597448610,-500.0,0.00022794,2]
[316709407,1709597448876,-500.0,0.00022794,2]
[316709408,1709597448886,-500.0,0.00022794,2]
[316709409,1709597448896,-500.0,0.00022794,2]
[316709410,1709597448906,-500.0,0.00022794,2]
[316709411,1709597448916,-500.0,0.00022794,2]
[316709412,1709597448926,-500.0,0.00022794,2]
[316709413,1709597448936,-500.0,0.00022794,2]
[316709414,1709597448945,-500.0,0.00022794,2]
[316709415,1709597448954,-500.0,0.00022794,2]
[316709416,1709597448964,-500.0,0.00022794,2]
[316709417,1709597448973,-500.0,0.00022794,2]
[316709418,1709597448982,-500.0,0.00022794,2]
[316709419,1709597448992,-500.0,0.00022794,2]
[316709420,1709597449001,-562.0,0.00022794,2]
[316709421,1709597449010,-500.0,0.00022794,2]
[316709422,1709597449020,-500.0,0.00022794,2]
[316709423,1709597449029,-589.3,0.00022794,2]
[316709424,1709597449038,-500.0,0.00022794,2]
[316709425,1709597449048,-500.0,0.00022794,2]
[316709426,1709597449057,-500.0,0.00022794,2]
[316709427,1709597449067,-500.0,0.00022794,2]
[316709428,1709597449075,-500.0,0.00022794,2]
[316709429,1709597449085,-500.0,0.00022794,2]
[316709430,1709597449095,-500.0,0.00022794,2]
[316709431,1709597449104,-500.0,0.00022794,2]
[316709432,1709597449114,-500.0,0.00022794,2]
[316709433,1709597449123,-500.0,0.00022794,2]
[316709434,1709597449132,-500.0,0.00022794,2]
[316709435,1709597449142,-500.0,0.00022794,2]
[316709436,1709597449151,-500.0,0.00022794,2]
[316709437,1709597449161,-500.0,0.00022794,2]
[316709438,1709597449170,-500.0,0.00022794,2]
[316709439,1709597449179,-284.88533827,0.00022794,2]
[316709440,1709597449189,-500.0,0.00022794,2]
[316709441,1709597449199,-500.0,0.00022794,2]
[316709442,1709597449209,-500.0,0.00022794,2]
[316709443,1709597449218,-500.0,0.00022794,2]
[316709444,1709597449226,-500.0,0.00022794,2]
[316709445,1709597449235,-500.0,0.00022794,2]
[316709446,1709597449244,-509.64061976,0.00022794,2]
[316709447,1709597449253,-504.1656853,0.00022794,2]
[316709448,1709597449263,-500.0,0.00022794,2]
[316709449,1709597449273,-500.0,0.00022794,2]
[316709450,1709597449284,-500.0,0.00022794,2]
[316709451,1709597449295,-500.0,0.00022794,2]
[316709452,1709597449305,-500.0,0.00022794,2]
[316709453,1709597449314,-246.06335428,0.00022794,2]
[316709454,1709597449323,-500.0,0.00022794,2]
[316709455,1709597449332,-500.0,0.00022794,2]
[316709456,1709597449341,-500.0,0.00022794,2]
[316709457,1709597449351,-500.0,0.00022794,2]
[316709458,1709597449360,-500.0,0.00022794,2]
[316709459,1709597449369,-500.0,0.00022794,2]
[316709460,1709597449378,-500.0,0.00022794,2]
[316709461,1709597449387,-500.0,0.00022794,2]
[316709462,1709597449397,-500.0,0.00022794,2]
[316709463,1709597449405,-500.0,0.00022794,2]
[316709464,1709597449415,-500.0,0.00022794,2]
[316709465,1709597449424,-500.0,0.00022794,2]
[316709466,1709597449433,-500.0,0.00022794,2]
[316709467,1709597449444,-500.0,0.00022794,2]
[316709468,1709597449453,-500.0,0.00022794,2]
[316709469,1709597449463,-500.0,0.00022794,2]
[316709470,1709597449472,-500.0,0.00022794,2]
[316709471,1709597449483,-500.0,0.00022794,2]
[316709472,1709597449495,-500.0,0.00022794,2]
[316709473,1709597449504,-500.0,0.00022794,2]
[316709474,1709597449513,-500.0,0.00022794,2]
[316709475,1709597449523,-500.0,0.00022794,2]
[316709476,1709597449532,-500.0,0.00022794,2]
[316709477,1709597449542,-500.0,0.00022794,2]
[316709478,1709597449552,-500.0,0.00022794,2]
[316709479,1709597449561,-500.0,0.00022794,2]
[316709480,1709597449571,-500.0,0.00022794,2]
[316709481,1709597449580,-500.0,0.00022794,2]
[316709482,1709597449590,-500.0,0.00022794,2]
[316709483,1709597449599,-577.76,0.00022794,2]
[316709484,1709597449608,-500.0,0.00022794,2]
[316709485,1709597449618,-500.0,0.00022794,2]
[316709486,1709597449627,-500.0,0.00022794,2]
[316709487,1709597449636,-500.0,0.00022794,2]
[316709488,1709597449645,-500.0,0.00022794,2]
[316709489,1709597449655,-500.0,0.00022794,2]
[316709490,1709597449665,-289.32868588,0.00022794,2]
[316709491,1709597449675,-500.0,0.00022794,2]
[316709492,1709597449686,-500.0,0.00022794,2]
[316709493,1709597449695,-500.0,0.00022794,2]
[316709494,1709597449705,-500.0,0.00022794,2]
[316709495,1709597449715,-500.0,0.00022794,2]
[316709496,1709597449724,-500.0,0.00022794,2]
[316709497,1709597449734,-500.0,0.00022794,2]
[316709498,1709597449744,-500.0,0.00022794,2]
[316709499,1709597449754,-500.0,0.00022794,2]
[316709500,1709597449763,-500.0,0.00022794,2]
[316709501,1709597449772,-500.0,0.00022794,2]
[316709502,1709597449782,-500.0,0.00022794,2]
[316709503,1709597449791,-500.0,0.00022794,2]
[316709504,1709597449801,-500.0,0.00022794,2]
[316709505,1709597449810,-500.0,0.00022794,2]
[316709506,1709597449819,-500.0,0.00022794,2]
[316709507,1709597449829,-500.0,0.00022794,2]
[316709508,1709597449839,-502.06970797,0.00022794,2]
[316709509,1709597449848,-500.0,0.00022794,2]
[316709510,1709597449858,-500.0,0.00022794,2]
[316709511,1709597449867,-500.0,0.00022794,2]
[316709512,1709597449876,-500.0,0.00022794,2]
[316709513,1709597449885,-500.0,0.00022794,2]
[316709514,1709597449894,-500.0,0.00022794,2]
[316709515,1709597449903,-500.0,0.00022794,2]
[316709516,1709597449912,-500.0,0.00022794,2]
[316709517,1709597449921,-500.0,0.00022794,2]
[316709518,1709597449930,-499.12059378,0.00022794,2]
[316709519,1709597449939,-403.81012485,0.00022794,2]
[316709520,1709597449948,-500.0,0.00022794,2]
[316709521,1709597449957,-500.0,0.00022794,2]
[316709522,1709597449967,-500.0,0.00022794,2]
[316709523,1709597449976,-500.0,0.00022794,2]
[316709524,1709597449985,-500.0,0.00022794,2]
[316709525,1709597449994,-500.0,0.00022794,2]
[316709526,1709597450004,-500.0,0.00022794,2]
[316709527,1709597450014,-500.0,0.00022794,2]
[316709528,1709597450024,-500.0,0.00022794,2]
[316709529,1709597450034,-500.0,0.00022794,2]
[316709530,1709597450044,-500.0,0.00022794,2]
[316709531,1709597450055,-503.98019844,0.00022794,2]
[316709532,1709597450064,-500.0,0.00022794,2]
[316709533,1709597450074,-500.0,0.00022794,2]
[316709534,1709597450083,-500.0,0.00022794,2]
[316709535,1709597450092,-500.0,0.00022794,2]
[316709536,1709597450101,-500.0,0.00022794,2]
[316709537,1709597450111,-500.0,0.00022794,2]
[316709538,1709597450120,-578.18186936,0.00022794,2]
[316709539,1709597450129,-500.0,0.00022794,2]
[316709540,1709597450139,-500.0,0.00022794,2]
[316709541,1709597450149,-500.0,0.00022794,2]
[316709542,1709597450159,-500.0,0.00022794,2]
[316709543,1709597450169,-500.0,0.00022794,2]
[316709544,1709597450179,-500.0,0.00022794,2]
[316709545,1709597450188,-500.0,0.00022794,2]
[316709546,1709597450198,-500.0,0.00022794,2]
[316709547,1709597450208,-500.0,0.00022794,2]
[316709548,1709597450218,-500.0,0.00022794,2]
[316709549,1709597450228,-500.0,0.00022794,2]
[316709550,1709597450238,-500.0,0.00022794,2]
[316709551,1709597450247,-500.0,0.00022794,2]
[316709552,1709597450257,-500.0,0.00022794,2]
[316709553,1709597450268,-500.0,0.00022794,2]
[316709554,1709597450277,-500.0,0.00022794,2]
[316709555,1709597450287,-500.0,0.00022794,2]
[316709556,1709597450297,-500.0,0.00022794,2]
[316709557,1709597450306,-500.0,0.00022794,2]
[316709558,1709597450315,-500.0,0.00022794,2]
[316709559,1709597450324,-500.0,0.00022794,2]
[316709560,1709597450334,-500.0,0.00022794,2]
[316709561,1709597450344,-571.2033207,0.00022794,2]
[316709562,1709597450354,-589.68,0.00022794,2]
[316709563,1709597450363,-500.0,0.00022794,2]
[316709564,1709597450372,-500.0,0.00022794,2]
[316709565,1709597450382,-500.0,0.00022794,2]
[316709566,1709597450392,-500.0,0.00022794,2]
[316709567,1709597450401,-500.0,0.00022794,2]
[316709568,1709597450411,-504.70604993,0.00022794,2]
[316709569,1709597450421,-500.0,0.00022794,2]
[316709570,1709597450430,-500.0,0.00022794,2]
[316709571,1709597450440,-500.0,0.00022794,2]